{"text_format":"3","workbook":"xlsx","n_sheets":2,"sheets":["Başlangıç","Kişisel Aylık Bütçe"],"not_rendered":{"images":1},"read":"whole","date_system":"1900"}

{"sheet":"Başlangıç","index":0,"n_rows":7,"n_cols":2,"rows_kept":7}
[null,"Bu Şablon hakkında"]
[null,"Tahmini ve Fiili Aylık Geliriniz ile Tahmini ve Fiili Maliyetinizi izlemek için bu Kişisel Aylık Bütçe çalışma sayfasını kullanın."]
[null,"Çeşitli kategorilerde gerçekleşen giderleri ilgili tablolara girin."]
[null,"Tahmini Bakiye, Fiili Bakiye ve Fark otomatik olarak hesaplanır."]
[null,"Not: "]
[null,"KİŞİSEL AYLIK BÜTÇE çalışma sayfasının A sütununda ek yönergeler sağlanmıştır. Bu metin özellikle gizlendi. Metni kaldırmak için A sütununu ve ardından SİL seçeneğini belirleyin. Metni göstermek için A sütununu seçin ve yazı tipi rengini değiştirin."]
[null,"Çalışma sayfasındaki tablolar hakkında daha fazla bilgi edinmek için bir tabloda SHIFT ve F10 tuşlarına basın, TABLO seçeneğini ve ardından ALTERNATİF METİN seçeneğini belirleyin."]

{"sheet":"Kişisel Aylık Bütçe","index":1,"n_rows":66,"n_cols":10,"rows_kept":66,"merged":[[3,1,3,2],[3,4,4,6],[3,7,4,7],[5,4,6,6],[5,7,6,7],[7,4,8,6],[7,7,8,7],[8,1,8,2],[24,6,24,9],[25,1,25,4],[33,6,33,9],[35,1,35,4],[40,6,40,9],[42,1,42,4],[46,6,46,9],[48,1,48,4],[52,6,52,9],[56,1,56,4],[59,6,59,9],[60,6,61,8],[60,9,61,9],[62,6,63,8],[62,9,63,9],[64,6,65,8],[64,9,65,9],[67,1,67,4]]}
["Bu çalışma sayfasında bir Kişisel Aylık Bütçe oluşturun. Bu çalışma sayfasının nasıl kullanılacağına yönelik yardımcı yönergeler bu sütundaki hücrelerdedir. Başlamak için aşağı oka basın."]
["Bu çalışma sayfasının başlığı sağdaki hücrededir. Sonraki yönerge A5 hücresindedir.",null,"Kişisel Aylık Bütçe"]
[]
["Tahmini Aylık Gelir etiketi sağdaki hücrededir. C7’de Toplam aylık geliri hesaplamak için C5 hücresine Gelir 1’i ve C6 hücresine Ek Geliri girin. Sonraki yönerge A7 hücresindedir.","Tahmini Aylık Gelir",null,null,"Tahmini Bakiye\n(Tahmini gelirler ve giderler farkı)",null,null,{"$f":"C7-J61","v":{"v":3405,"d":"3,405.00 ₺"}}]
[null,"Gelir 1",{"v":4300,"d":"4,300.00 ₺"}]
[null,"Ek gelir",{"v":300,"d":"300.00 ₺"},null,"Fiili Bakiye\n(Fiili gelirler ve giderler farkı)",null,null,{"$f":"C12-J63","v":{"v":3064,"d":"3,064.00 ₺"}}]
["Tahmini Bakiye H4, Fiili Bakiye H6 ve Fark H8 hücresinde otomatik olarak hesaplanır. Sonraki yönerge A9 hücresindedir.","Toplam aylık gelir",{"$f":"SUM(C5:C6)","v":{"v":4600,"d":"4,600.00 ₺"}}]
[{"$nulls":4},"Fark\n(Fiili ve tahmini farkı)",null,null,{"$f":"H6-H4","v":{"v":-341,"d":"-341.00 ₺"}}]
["Fiili Aylık Gelir etiketi sağdaki hücrededir. C12’de Toplam aylık geliri hesaplamak için C10 hücresine Gelir 1’i ve C11 hücresine Ek Geliri girin. Sonraki yönerge A14 hücresindedir.","Fiili Aylık Gelir"]
[null,"Gelir 1",{"v":4000,"d":"4,000.00 ₺"}]
[null,"Ek gelir",{"v":300,"d":"300.00 ₺"}]
[null,"Toplam aylık gelir",{"$f":"SUM(C10:C11)","v":{"v":4300,"d":"4,300.00 ₺"}}]
[]
["Barınma tablosunda sağdaki hücreden başlayarak ve Eğlence tablosunda G14 hücresinden başlayarak ayrıntıları girin. Sonraki yönerge A27 hücresindedir.","BARINMA","Tahmini Masraf","Fiili Masraf","Fark",null,"EĞLENCE","Tahmini Masraf","Fiili Masraf","Fark"]
[null,"Konut kredisi veya kira",{"v":1000,"d":"1,000.00 ₺"},{"v":1000,"d":"1,000.00 ₺"},{"$f":"Barınma[[#This Row],[Tahmini Masraf]]-Barınma[[#This Row],[Fiili Masraf]]","v":{"v":0,"d":"0.00 ₺"}},null,"Video/DVD",null,null,{"$f":"Eğlence[[#This Row],[Tahmini Masraf]]-Eğlence[[#This Row],[Fiili Masraf]]","v":{"v":0,"d":"0.00 ₺"}}]
[null,"Telefon",{"v":54,"d":"54.00 ₺"},{"v":100,"d":"100.00 ₺"},{"$f":"Barınma[[#This Row],[Tahmini Masraf]]-Barınma[[#This Row],[Fiili Masraf]]","v":{"v":-46,"d":"-46.00 ₺"}},null,"CD’ler",null,null,{"$f":"Eğlence[[#This Row],[Tahmini Masraf]]-Eğlence[[#This Row],[Fiili Masraf]]","v":{"v":0,"d":"0.00 ₺"}}]
[null,"Elektrik",{"v":44,"d":"44.00 ₺"},{"v":56,"d":"56.00 ₺"},{"$f":"Barınma[[#This Row],[Tahmini Masraf]]-Barınma[[#This Row],[Fiili Masraf]]","v":{"v":-12,"d":"-12.00 ₺"}},null,"Filmler",null,null,{"$f":"Eğlence[[#This Row],[Tahmini Masraf]]-Eğlence[[#This Row],[Fiili Masraf]]","v":{"v":0,"d":"0.00 ₺"}}]
[null,"Doğalgaz",{"v":22,"d":"22.00 ₺"},{"v":28,"d":"28.00 ₺"},{"$f":"Barınma[[#This Row],[Tahmini Masraf]]-Barınma[[#This Row],[Fiili Masraf]]","v":{"v":-6,"d":"-6.00 ₺"}},null,"Konserler",null,null,{"$f":"Eğlence[[#This Row],[Tahmini Masraf]]-Eğlence[[#This Row],[Fiili Masraf]]","v":{"v":0,"d":"0.00 ₺"}}]
[null,"Su ve kanalizasyon",{"v":8,"d":"8.00 ₺"},{"v":8,"d":"8.00 ₺"},{"$f":"Barınma[[#This Row],[Tahmini Masraf]]-Barınma[[#This Row],[Fiili Masraf]]","v":{"v":0,"d":"0.00 ₺"}},null,"Spor etkinlikleri",null,null,{"$f":"Eğlence[[#This Row],[Tahmini Masraf]]-Eğlence[[#This Row],[Fiili Masraf]]","v":{"v":0,"d":"0.00 ₺"}}]
[null,"Kablolu TV",{"v":34,"d":"34.00 ₺"},{"v":34,"d":"34.00 ₺"},{"$f":"Barınma[[#This Row],[Tahmini Masraf]]-Barınma[[#This Row],[Fiili Masraf]]","v":{"v":0,"d":"0.00 ₺"}},null,"Tiyatro",null,null,{"$f":"Eğlence[[#This Row],[Tahmini Masraf]]-Eğlence[[#This Row],[Fiili Masraf]]","v":{"v":0,"d":"0.00 ₺"}}]
[null,"Atık temizleme",{"v":10,"d":"10.00 ₺"},{"v":10,"d":"10.00 ₺"},{"$f":"Barınma[[#This Row],[Tahmini Masraf]]-Barınma[[#This Row],[Fiili Masraf]]","v":{"v":0,"d":"0.00 ₺"}},null,"Diğer",null,null,{"$f":"Eğlence[[#This Row],[Tahmini Masraf]]-Eğlence[[#This Row],[Fiili Masraf]]","v":{"v":0,"d":"0.00 ₺"}}]
[null,"Bakım veya onarım",{"v":23,"d":"23.00 ₺"},{"v":0,"d":"0.00 ₺"},{"$f":"Barınma[[#This Row],[Tahmini Masraf]]-Barınma[[#This Row],[Fiili Masraf]]","v":{"v":23,"d":"23.00 ₺"}},null,"Diğer",null,null,{"$f":"Eğlence[[#This Row],[Tahmini Masraf]]-Eğlence[[#This Row],[Fiili Masraf]]","v":{"v":0,"d":"0.00 ₺"}}]
[null,"Malzemeler",{"v":0,"d":"0.00 ₺"},{"v":0,"d":"0.00 ₺"},{"$f":"Barınma[[#This Row],[Tahmini Masraf]]-Barınma[[#This Row],[Fiili Masraf]]","v":{"v":0,"d":"0.00 ₺"}},null,"Diğer",null,null,{"$f":"Eğlence[[#This Row],[Tahmini Masraf]]-Eğlence[[#This Row],[Fiili Masraf]]","v":{"v":0,"d":"0.00 ₺"}}]
[null,"Diğer",{"v":0,"d":"0.00 ₺"},{"v":0,"d":"0.00 ₺"},{"$f":"Barınma[[#This Row],[Tahmini Masraf]]-Barınma[[#This Row],[Fiili Masraf]]","v":{"v":0,"d":"0.00 ₺"}},null,"Ara toplam",null,null,{"$f":"SUBTOTAL(109,Eğlence[Fark])","v":{"v":0,"d":"0.00 ₺"}}]
[null,"Ara toplam",null,null,{"$f":"SUBTOTAL(109,Barınma[Fark])","v":{"v":-41,"d":"-41.00 ₺"}}]
[{"$nulls":6},"KREDİLER","Tahmini Masraf","Fiili Masraf","Fark"]
["Ulaşım tablosunda sağdaki hücreden başlayarak ve Krediler tablosunda G26 hücresinden başlayarak ayrıntıları girin. Sonraki yönerge A37 hücresindedir.","ULAŞIM","Tahmini Masraf","Fiili Masraf","Fark",null,"Kişisel",null,null,{"$f":"Krediler[[#This Row],[Tahmini Masraf]]-Krediler[[#This Row],[Fiili Masraf]]","v":{"v":0,"d":"0.00 ₺"}}]
[null,"Araç ödemesi",null,null,{"$f":"Ulaşım[[#This Row],[Tahmini Masraf]]-Ulaşım[[#This Row],[Fiili Masraf]]","v":{"v":0,"d":"0.00 ₺"}},null,"Öğrenci",null,null,{"$f":"Krediler[[#This Row],[Tahmini Masraf]]-Krediler[[#This Row],[Fiili Masraf]]","v":{"v":0,"d":"0.00 ₺"}}]
[null,"Otobüs/taksi ücretleri",null,null,{"$f":"Ulaşım[[#This Row],[Tahmini Masraf]]-Ulaşım[[#This Row],[Fiili Masraf]]","v":{"v":0,"d":"0.00 ₺"}},null,"Kredi kartı",null,null,{"$f":"Krediler[[#This Row],[Tahmini Masraf]]-Krediler[[#This Row],[Fiili Masraf]]","v":{"v":0,"d":"0.00 ₺"}}]
[null,"Sigorta",null,null,{"$f":"Ulaşım[[#This Row],[Tahmini Masraf]]-Ulaşım[[#This Row],[Fiili Masraf]]","v":{"v":0,"d":"0.00 ₺"}},null,"Kredi kartı",null,null,{"$f":"Krediler[[#This Row],[Tahmini Masraf]]-Krediler[[#This Row],[Fiili Masraf]]","v":{"v":0,"d":"0.00 ₺"}}]
[null,"Ruhsat alma",null,null,{"$f":"Ulaşım[[#This Row],[Tahmini Masraf]]-Ulaşım[[#This Row],[Fiili Masraf]]","v":{"v":0,"d":"0.00 ₺"}},null,"Kredi kartı",null,null,{"$f":"Krediler[[#This Row],[Tahmini Masraf]]-Krediler[[#This Row],[Fiili Masraf]]","v":{"v":0,"d":"0.00 ₺"}}]
[null,"Yakıt",null,null,{"$f":"Ulaşım[[#This Row],[Tahmini Masraf]]-Ulaşım[[#This Row],[Fiili Masraf]]","v":{"v":0,"d":"0.00 ₺"}},null,"Diğer",null,null,{"$f":"Krediler[[#This Row],[Tahmini Masraf]]-Krediler[[#This Row],[Fiili Masraf]]","v":{"v":0,"d":"0.00 ₺"}}]
[null,"Bakım",null,null,{"$f":"Ulaşım[[#This Row],[Tahmini Masraf]]-Ulaşım[[#This Row],[Fiili Masraf]]","v":{"v":0,"d":"0.00 ₺"}},null,"Ara toplam",null,null,{"$f":"SUBTOTAL(109,Krediler[Fark])","v":{"v":0,"d":"0.00 ₺"}}]
[null,"Diğer",null,null,{"$f":"Ulaşım[[#This Row],[Tahmini Masraf]]-Ulaşım[[#This Row],[Fiili Masraf]]","v":{"v":0,"d":"0.00 ₺"}}]
[null,"Ara toplam",null,null,{"$f":"SUBTOTAL(109,Ulaşım[Fark])","v":{"v":0,"d":"0.00 ₺"}},null,"VERGİLER","Tahmini Masraf","Fiili Masraf","Fark"]
[{"$nulls":6},"Federal",null,null,{"$f":"Vergiler[[#This Row],[Tahmini Masraf]]-Vergiler[[#This Row],[Fiili Masraf]]","v":{"v":0,"d":"0.00 ₺"}}]
["Sigorta tablosunda sağdaki hücreden başlayarak ve Vergiler tablosunda G35 hücresinden başlayarak ayrıntıları girin. Sonraki yönerge A44 hücresindedir.","SİGORTA","Tahmini Masraf","Fiili Masraf","Fark",null,"Devlet",null,null,{"$f":"Vergiler[[#This Row],[Tahmini Masraf]]-Vergiler[[#This Row],[Fiili Masraf]]","v":{"v":0,"d":"0.00 ₺"}}]
[null,"Ev",null,null,{"$f":"Sigorta[[#This Row],[Tahmini Masraf]]-Sigorta[[#This Row],[Fiili Masraf]]","v":{"v":0,"d":"0.00 ₺"}},null,"Belediye",null,null,{"$f":"Vergiler[[#This Row],[Tahmini Masraf]]-Vergiler[[#This Row],[Fiili Masraf]]","v":{"v":0,"d":"0.00 ₺"}}]
[null,"Sağlık",null,null,{"$f":"Sigorta[[#This Row],[Tahmini Masraf]]-Sigorta[[#This Row],[Fiili Masraf]]","v":{"v":0,"d":"0.00 ₺"}},null,"Diğer",null,null,{"$f":"Vergiler[[#This Row],[Tahmini Masraf]]-Vergiler[[#This Row],[Fiili Masraf]]","v":{"v":0,"d":"0.00 ₺"}}]
[null,"Yaşam",null,null,{"$f":"Sigorta[[#This Row],[Tahmini Masraf]]-Sigorta[[#This Row],[Fiili Masraf]]","v":{"v":0,"d":"0.00 ₺"}},null,"Ara toplam",null,null,{"$f":"SUBTOTAL(109,Vergiler[Fark])","v":{"v":0,"d":"0.00 ₺"}}]
[null,"Diğer",null,null,{"$f":"Sigorta[[#This Row],[Tahmini Masraf]]-Sigorta[[#This Row],[Fiili Masraf]]","v":{"v":0,"d":"0.00 ₺"}}]
[null,"Ara toplam",null,null,{"$f":"SUBTOTAL(109,Sigorta[Fark])","v":{"v":0,"d":"0.00 ₺"}},null,"BİRİKİMLER VE YATIRIMLAR","Tahmini Masraf","Fiili Masraf","Fark"]
[{"$nulls":6},"Emeklilik hesabı",null,null,{"$f":"Tasarruf[[#This Row],[Tahmini Masraf]]-Tasarruf[[#This Row],[Fiili Masraf]]","v":{"v":0,"d":"0.00 ₺"}}]
["Yiyecek tablosunda sağdaki hücreden başlayarak ve Tasarruf tablosunda G42 hücresinden başlayarak ayrıntıları girin. Sonraki yönerge A50 hücresindedir.","YİYECEK","Tahmini Masraf","Fiili Masraf","Fark",null,"Yatırım hesabı",null,null,{"$f":"Tasarruf[[#This Row],[Tahmini Masraf]]-Tasarruf[[#This Row],[Fiili Masraf]]","v":{"v":0,"d":"0.00 ₺"}}]
[null,"Market",null,null,{"$f":"Yiyecek[[#This Row],[Tahmini Masraf]]-Yiyecek[[#This Row],[Fiili Masraf]]","v":{"v":0,"d":"0.00 ₺"}},null,"Diğer",null,null,{"$f":"Tasarruf[[#This Row],[Tahmini Masraf]]-Tasarruf[[#This Row],[Fiili Masraf]]","v":{"v":0,"d":"0.00 ₺"}}]
[null,"Dışarıda yemek",null,null,{"$f":"Yiyecek[[#This Row],[Tahmini Masraf]]-Yiyecek[[#This Row],[Fiili Masraf]]","v":{"v":0,"d":"0.00 ₺"}},null,"Ara toplam",null,null,{"$f":"SUBTOTAL(109,Tasarruf[Fark])","v":{"v":0,"d":"0.00 ₺"}}]
[null,"Diğer",null,null,{"$f":"Yiyecek[[#This Row],[Tahmini Masraf]]-Yiyecek[[#This Row],[Fiili Masraf]]","v":{"v":0,"d":"0.00 ₺"}}]
[null,"Ara toplam",null,null,{"$f":"SUBTOTAL(109,Yiyecek[Fark])","v":{"v":0,"d":"0.00 ₺"}},null,"HEDİYELER VE BAĞIŞLAR","Tahmini Masraf","Fiili Masraf","Fark"]
[{"$nulls":6},"Hayır kurumu 1",null,null,{"$f":"Hediyeler[[#This Row],[Tahmini Masraf]]-Hediyeler[[#This Row],[Fiili Masraf]]","v":{"v":0,"d":"0.00 ₺"}}]
["Evcil Hayvanlar tablosunda sağdaki hücreden başlayarak ve Hediyeler tablosunda G48 hücresinden başlayarak ayrıntıları girin. Sonraki yönerge A58 hücresindedir.","EVCİL HAYVANLAR","Tahmini Masraf","Fiili Masraf","Fark",null,"Hayır kurumu 2",null,null,{"$f":"Hediyeler[[#This Row],[Tahmini Masraf]]-Hediyeler[[#This Row],[Fiili Masraf]]","v":{"v":0,"d":"0.00 ₺"}}]
[null,"Yiyecek",null,null,{"$f":"Evcil_Hayvanlar[[#This Row],[Tahmini Masraf]]-Evcil_Hayvanlar[[#This Row],[Fiili Masraf]]","v":{"v":0,"d":"0.00 ₺"}},null,"Hayır kurumu 3",null,null,{"$f":"Hediyeler[[#This Row],[Tahmini Masraf]]-Hediyeler[[#This Row],[Fiili Masraf]]","v":{"v":0,"d":"0.00 ₺"}}]
[null,"Sağlık",null,null,{"$f":"Evcil_Hayvanlar[[#This Row],[Tahmini Masraf]]-Evcil_Hayvanlar[[#This Row],[Fiili Masraf]]","v":{"v":0,"d":"0.00 ₺"}},null,"Ara toplam",null,null,{"$f":"SUBTOTAL(109,Hediyeler[Fark])","v":{"v":0,"d":"0.00 ₺"}}]
[null,"Bakım",null,null,{"$f":"Evcil_Hayvanlar[[#This Row],[Tahmini Masraf]]-Evcil_Hayvanlar[[#This Row],[Fiili Masraf]]","v":{"v":0,"d":"0.00 ₺"}}]
[null,"Oyuncak",null,null,{"$f":"Evcil_Hayvanlar[[#This Row],[Tahmini Masraf]]-Evcil_Hayvanlar[[#This Row],[Fiili Masraf]]","v":{"v":0,"d":"0.00 ₺"}},null,"YASAL","Tahmini Masraf","Fiili Masraf","Fark"]
[null,"Diğer",null,null,{"$f":"Evcil_Hayvanlar[[#This Row],[Tahmini Masraf]]-Evcil_Hayvanlar[[#This Row],[Fiili Masraf]]","v":{"v":0,"d":"0.00 ₺"}},null,"Avukat",null,null,{"$f":"Yasal[[#This Row],[Tahmini Masraf]]-Yasal[[#This Row],[Fiili Masraf]]","v":{"v":0,"d":"0.00 ₺"}}]
[null,"Ara toplam",null,null,{"$f":"SUBTOTAL(109,Evcil_Hayvanlar[Fark])","v":{"v":0,"d":"0.00 ₺"}},null,"Nafaka",null,null,{"$f":"Yasal[[#This Row],[Tahmini Masraf]]-Yasal[[#This Row],[Fiili Masraf]]","v":{"v":0,"d":"0.00 ₺"}}]
[{"$nulls":6},"Hacizli veya kararın çıktığı ödemeler",null,null,{"$f":"Yasal[[#This Row],[Tahmini Masraf]]-Yasal[[#This Row],[Fiili Masraf]]","v":{"v":0,"d":"0.00 ₺"}}]
["Kişisel Bakım tablosunda sağdaki hücreden başlayarak ve Yasal tablosunda G54 hücresinden başlayarak ayrıntıları girin. Sonraki yönerge A61 hücresindedir.","KİŞİSEL BAKIM","Tahmini Masraf","Fiili Masraf","Fark",null,"Diğer",null,null,{"$f":"Yasal[[#This Row],[Tahmini Masraf]]-Yasal[[#This Row],[Fiili Masraf]]","v":{"v":0,"d":"0.00 ₺"}}]
[null,"Sağlık",null,null,{"$f":"KişiselBakım[[#This Row],[Tahmini Masraf]]-KişiselBakım[[#This Row],[Fiili Masraf]]","v":{"v":0,"d":"0.00 ₺"}},null,"Ara Toplam",null,null,{"$f":"SUBTOTAL(103,Yasal[Fark])","v":{"v":4,"d":"4.00 ₺"}}]
[null,"Kuaför",null,null,{"$f":"KişiselBakım[[#This Row],[Tahmini Masraf]]-KişiselBakım[[#This Row],[Fiili Masraf]]","v":{"v":0,"d":"0.00 ₺"}}]
["Toplam Tahmini Maliyet J61, Toplam Fiili Maliyet J63 ve Toplam Fark J65 hücresinde otomatik olarak hesaplanır.","Giyim",null,null,{"$f":"KişiselBakım[[#This Row],[Tahmini Masraf]]-KişiselBakım[[#This Row],[Fiili Masraf]]","v":{"v":0,"d":"0.00 ₺"}},null,"Toplam Tahmini Masraf",null,null,{"$f":"SUBTOTAL(109,Barınma[Tahmini Masraf],Ulaşım[Tahmini Masraf],Sigorta[Tahmini Masraf],Yiyecek[Tahmini Masraf],Evcil_Hayvanlar[Tahmini Masraf],KişiselBakım[Tahmini Masraf],Eğlence[Tahmini Masraf],Krediler[Tahmini Masraf],Vergiler[Tahmini Masraf],Tasarruf[Tahmini Masraf],Hediyeler[Tahmini Masraf],Yasal[Tahmini Masraf])","v":{"v":1195,"d":"1,195.00 ₺"}}]
[null,"Kuru temizleme",null,null,{"$f":"KişiselBakım[[#This Row],[Tahmini Masraf]]-KişiselBakım[[#This Row],[Fiili Masraf]]","v":{"v":0,"d":"0.00 ₺"}}]
[null,"Sağlık kulübü",null,null,{"$f":"KişiselBakım[[#This Row],[Tahmini Masraf]]-KişiselBakım[[#This Row],[Fiili Masraf]]","v":{"v":0,"d":"0.00 ₺"}},null,"Toplam Gerçek Maliyet",null,null,{"$f":"SUBTOTAL(109,Barınma[Fiili Masraf],Ulaşım[Fiili Masraf],Sigorta[Fiili Masraf],Yiyecek[Fiili Masraf],Evcil_Hayvanlar[Fiili Masraf],KişiselBakım[Fiili Masraf],Eğlence[Fiili Masraf],Krediler[Fiili Masraf],Vergiler[Fiili Masraf],Tasarruf[Fiili Masraf],Hediyeler[Fiili Masraf],Yasal[Fiili Masraf])","v":{"v":1236,"d":"1,236.00 ₺"}}]
[null,"Kuruluş aidatları veya ücretleri",null,null,{"$f":"KişiselBakım[[#This Row],[Tahmini Masraf]]-KişiselBakım[[#This Row],[Fiili Masraf]]","v":{"v":0,"d":"0.00 ₺"}}]
[null,"Diğer",null,null,{"$f":"KişiselBakım[[#This Row],[Tahmini Masraf]]-KişiselBakım[[#This Row],[Fiili Masraf]]","v":{"v":0,"d":"0.00 ₺"}},null,"Toplam Fark",null,null,{"$f":"J61-J63","v":{"v":-41,"d":"-41.00 ₺"}}]
[null,"Ara Toplam",null,null,{"$f":"SUBTOTAL(103,KişiselBakım[Fark])","v":{"v":7,"d":"7.00 ₺"}}]